[Event "*** SCC Grand Prix: Titled Tuesday Blitz"]
[Site "Chess.com"]
[Date "2020.07.14"]
[Round "7"]
[White "northridgehawk"]
[Black "Korona_91"]
[Result "0-1"]
[WhiteElo "2352"]
[BlackElo "2495"]
[TimeControl "180+1"]
[EndTime "11:15:27 PDT"]
[Termination "Korona_91 won by resignation"]

1. e4 {[%clk 0:03:00.9]} 1... e6 {[%clk 0:02:57.3]} 2. Nc3 {[%clk 0:02:59.7]}
2... d5 {[%clk 0:02:57.1]} 3. Nf3 {[%clk 0:02:57.6]} 3... Nf6 {[%clk 0:02:55]}
4. e5 {[%clk 0:02:57.9]} 4... Nfd7 {[%clk 0:02:54.3]} 5. d4 {[%clk 0:02:58.8]}
5... c5 {[%clk 0:02:54.6]} 6. dxc5 {[%clk 0:02:59.7]} 6... Nc6 {[%clk
0:02:54.5]} 7. Bf4 {[%clk 0:02:59]} 7... Bxc5 {[%clk 0:02:54.5]} 8. Bd3 {[%clk
0:02:59.4]} 8... f6 {[%clk 0:02:47.2]} 9. exf6 {[%clk 0:03:00.3]} 9... Qxf6
{[%clk 0:02:46.7]} 10. Bg5 {[%clk 0:02:54.1]} 10... Qf7 {[%clk 0:02:46.1]} 11.
Bh4 {[%clk 0:02:55]} 11... Nde5 {[%clk 0:02:33.2]} 12. Qe2 {[%clk 0:02:40.3]}
12... Nxf3+ {[%clk 0:02:28.8]} 13. Qxf3 {[%clk 0:02:37.2]} 13... Qxf3 {[%clk
0:02:20.5]} 14. gxf3 {[%clk 0:02:38.1]} 14... O-O {[%clk 0:02:20.5]} 15. O-O-O
{[%clk 0:02:34]} 15... Rxf3 {[%clk 0:02:13.2]} 16. Bg3 {[%clk 0:02:34.3]} 16...
Bxf2 {[%clk 0:02:02.8]} 17. Bxf2 {[%clk 0:02:32.6]} 17... Rxf2 {[%clk
0:02:03.7]} 18. Nb5 {[%clk 0:02:29.9]} 18... Bd7 {[%clk 0:02:00.7]} 19. Rde1
{[%clk 0:02:27.9]} 19... Nb4 {[%clk 0:01:56.2]} 20. Be2 {[%clk 0:02:20.3]} 0-1

[Event "*** SCC Grand Prix: Titled Tuesday Blitz"]
[Site "Chess.com"]
[Date "2020.07.14"]
[Round "7"]
[White "harkerchess"]
[Black "Stosk"]
[Result "1-0"]
[WhiteElo "2102"]
[BlackElo "2285"]
[TimeControl "180+1"]
[EndTime "11:15:29 PDT"]
[Termination "harkerchess won by checkmate"]

1. d4 {[%clk 0:03:00.9]} 1... d5 {[%clk 0:02:39.7]} 2. c4 {[%clk 0:02:59.6]}
2... e6 {[%clk 0:02:39.1]} 3. Nc3 {[%clk 0:02:59.4]} 3... a6 {[%clk 0:02:39.1]}
4. cxd5 {[%clk 0:02:59.6]} 4... exd5 {[%clk 0:02:40]} 5. Qc2 {[%clk 0:02:59.4]}
5... Nf6 {[%clk 0:02:38]} 6. Bg5 {[%clk 0:02:58.3]} 6... Be7 {[%clk 0:02:37.8]}
7. e3 {[%clk 0:02:58.4]} 7... O-O {[%clk 0:02:36.7]} 8. Bd3 {[%clk 0:02:59]}
8... h6 {[%clk 0:02:36.7]} 9. Nge2 {[%clk 0:02:59.6]} 9... hxg5 {[%clk
0:02:36.3]} 10. h4 {[%clk 0:02:54.4]} 10... gxh4 {[%clk 0:02:30.3]} 11. Rxh4
{[%clk 0:02:55.3]} 11... Ne4 {[%clk 0:02:26.3]} 12. Rh1 {[%clk 0:02:51.4]} 12...
f5 {[%clk 0:02:25.7]} 13. Nxd5 {[%clk 0:02:50.3]} 13... Bd6 {[%clk 0:02:20]} 14.
Ndf4 {[%clk 0:02:38.3]} 14... Bxf4 {[%clk 0:02:11.9]} 15. Nxf4 {[%clk 0:02:38]}
15... Nc6 {[%clk 0:01:45.7]} 16. Bc4+ {[%clk 0:02:36.3]} 16... Rf7 {[%clk
0:01:43.7]} 17. Qb3 {[%clk 0:02:34.7]} 17... Nd6 {[%clk 0:01:41.1]} 18. Bxf7+
{[%clk 0:02:32.5]} 18... Nxf7 {[%clk 0:01:42]} 19. Ng6 {[%clk 0:02:32.5]} 19...
Qf6 {[%clk 0:01:28.4]} 20. Rh8# {[%clk 0:02:31.5]} 1-0

[Event "*** SCC Grand Prix: Titled Tuesday Blitz"]
[Site "Chess.com"]
[Date "2020.07.14"]
[Round "7"]
[White "MergenKakabaev"]
[Black "Zubrrr"]
[Result "0-1"]
[WhiteElo "2426"]
[BlackElo "2636"]
[TimeControl "180+1"]
[EndTime "11:15:55 PDT"]
[Termination "Zubrrr won by resignation"]

1. e4 {[%clk 0:03:00.9]} 1... Nc6 {[%clk 0:02:57.8]} 2. Nf3 {[%clk 0:03:00.3]}
2... d6 {[%clk 0:02:57.6]} 3. d4 {[%clk 0:02:59.9]} 3... Nf6 {[%clk 0:02:57.3]}
4. Nc3 {[%clk 0:02:58.8]} 4... g6 {[%clk 0:02:57.7]} 5. h3 {[%clk 0:02:57.9]}
5... Bg7 {[%clk 0:02:57.5]} 6. Bd3 {[%clk 0:02:58]} 6... O-O {[%clk 0:02:56]} 7.
O-O {[%clk 0:02:55.6]} 7... e5 {[%clk 0:02:55.8]} 8. d5 {[%clk 0:02:56]} 8...
Ne7 {[%clk 0:02:55]} 9. Ne2 {[%clk 0:02:55.4]} 9... Ne8 {[%clk 0:02:53.8]} 10.
c4 {[%clk 0:02:42]} 10... f5 {[%clk 0:02:49]} 11. b4 {[%clk 0:02:41]} 11... f4
{[%clk 0:02:41.7]} 12. c5 {[%clk 0:02:40.2]} 12... h6 {[%clk 0:02:41.5]} 13.
cxd6 {[%clk 0:02:32]} 13... cxd6 {[%clk 0:02:42.4]} 14. a4 {[%clk 0:02:28.5]}
14... g5 {[%clk 0:02:41.6]} 15. b5 {[%clk 0:02:27.9]} 15... Ng6 {[%clk
0:02:40.5]} 16. Ba3 {[%clk 0:02:23.3]} 16... h5 {[%clk 0:02:38.7]} 17. Nh2
{[%clk 0:02:19.4]} 17... g4 {[%clk 0:02:38.3]} 18. hxg4 {[%clk 0:02:17.7]} 18...
hxg4 {[%clk 0:02:39.2]} 19. g3 {[%clk 0:02:15.4]} 19... Qg5 {[%clk 0:02:28.7]}
20. Rc1 {[%clk 0:02:13.6]} 20... Bd7 {[%clk 0:02:25]} 21. Qd2 {[%clk 0:01:53]}
21... Qh5 {[%clk 0:02:21.4]} 22. Rc2 {[%clk 0:01:45.8]} 22... f3 {[%clk
0:02:19.6]} 0-1

[Event "*** SCC Grand Prix: Titled Tuesday Blitz"]
[Site "Chess.com"]
[Date "2020.07.14"]
[Round "7"]
[White "Barmen_EV"]
[Black "Jabberwockiez"]
[Result "1-0"]
[WhiteElo "2436"]
[BlackElo "2292"]
[TimeControl "180+1"]
[EndTime "11:15:59 PDT"]
[Termination "Barmen_EV won by resignation"]

1. d4 {[%clk 0:03:00.9]} 1... Nf6 {[%clk 0:02:59.7]} 2. c4 {[%clk 0:03:01.8]}
2... e6 {[%clk 0:03:00]} 3. Nc3 {[%clk 0:03:02.3]} 3... Bb4 {[%clk 0:03:00.6]}
4. e3 {[%clk 0:03:02.6]} 4... O-O {[%clk 0:03:00.4]} 5. a3 {[%clk 0:03:03.5]}
5... Bxc3+ {[%clk 0:03:00.1]} 6. bxc3 {[%clk 0:03:04.4]} 6... c5 {[%clk
0:03:00.1]} 7. Bd3 {[%clk 0:03:04.6]} 7... d5 {[%clk 0:03:00.5]} 8. cxd5 {[%clk
0:03:05.5]} 8... exd5 {[%clk 0:03:00.5]} 9. Ne2 {[%clk 0:03:06.4]} 9... Nc6
{[%clk 0:02:50.4]} 10. O-O {[%clk 0:03:06.7]} 10... Ne7 {[%clk 0:02:50.7]} 11.
Ng3 {[%clk 0:03:04.1]} 11... Ng6 {[%clk 0:02:40.5]} 12. f3 {[%clk 0:03:04.5]}
12... Re8 {[%clk 0:02:36.8]} 13. Qd2 {[%clk 0:03:04.4]} 13... Nh4 {[%clk
0:02:24.5]} 14. Bb2 {[%clk 0:03:02.6]} 14... Qa5 {[%clk 0:02:09.7]} 15. Qf2
{[%clk 0:02:58.4]} 15... Bd7 {[%clk 0:01:50.3]} 16. e4 {[%clk 0:02:56.1]} 16...
cxd4 {[%clk 0:01:40]} 17. cxd4 {[%clk 0:02:56.5]} 17... Rac8 {[%clk 0:01:36.2]}
18. e5 {[%clk 0:02:53.9]} 18... Bb5 {[%clk 0:00:50.9]} 19. Bxb5 {[%clk
0:02:52.1]} 19... Qxb5 {[%clk 0:00:51.8]} 20. exf6 {[%clk 0:02:52.1]} 20... Re2
{[%clk 0:00:51.1]} 21. Qxe2 {[%clk 0:02:50]} 21... Qxe2 {[%clk 0:00:50.1]} 22.
Nxe2 {[%clk 0:02:50.6]} 1-0

[Event "*** SCC Grand Prix: Titled Tuesday Blitz"]
[Site "Chess.com"]
[Date "2020.07.14"]
[Round "7"]
[White "ENEASZ"]
[Black "VladimirBelous"]
[Result "1-0"]
[WhiteElo "2590"]
[BlackElo "2724"]
[TimeControl "180+1"]
[EndTime "11:16:06 PDT"]
[Termination "ENEASZ won by resignation"]

1. e4 {[%clk 0:03:00.9]} 1... c5 {[%clk 0:02:59.4]} 2. c3 {[%clk 0:03:01]} 2...
Nf6 {[%clk 0:02:55.6]} 3. e5 {[%clk 0:03:00.5]} 3... Nd5 {[%clk 0:02:55.9]} 4.
d4 {[%clk 0:03:01]} 4... cxd4 {[%clk 0:02:56]} 5. cxd4 {[%clk 0:03:01.7]} 5...
Nc6 {[%clk 0:02:55.1]} 6. Nf3 {[%clk 0:03:00.9]} 6... d6 {[%clk 0:02:55.3]} 7.
Bc4 {[%clk 0:03:00.8]} 7... dxe5 {[%clk 0:02:55.7]} 8. Bxd5 {[%clk 0:03:01.1]}
8... Qxd5 {[%clk 0:02:55.4]} 9. Nc3 {[%clk 0:03:01.4]} 9... Qd6 {[%clk
0:02:50.9]} 10. d5 {[%clk 0:03:01.5]} 10... Nd8 {[%clk 0:02:50.3]} 11. O-O
{[%clk 0:02:59.4]} 11... a6 {[%clk 0:02:37.3]} 12. Be3 {[%clk 0:02:59.1]} 12...
f5 {[%clk 0:02:36]} 13. Rc1 {[%clk 0:02:55.3]} 13... Bd7 {[%clk 0:02:18.1]} 14.
Re1 {[%clk 0:02:42.4]} 14... g6 {[%clk 0:02:10.7]} 15. Nxe5 {[%clk 0:02:38.7]}
15... Bg7 {[%clk 0:01:58.2]} 16. Nxd7 {[%clk 0:02:34.9]} 16... Qxd7 {[%clk
0:01:53.6]} 17. Bg5 {[%clk 0:02:32.8]} 17... O-O {[%clk 0:01:43.8]} 18. Bxe7
{[%clk 0:02:06.7]} 18... Re8 {[%clk 0:01:43.2]} 19. d6 {[%clk 0:02:06.9]} 19...
Nf7 {[%clk 0:01:43.1]} 20. Nd5 {[%clk 0:02:05.5]} 20... Nxd6 {[%clk 0:01:29.2]}
21. Nb6 {[%clk 0:01:56.3]} 1-0

[Event "*** SCC Grand Prix: Titled Tuesday Blitz"]
[Site "Chess.com"]
[Date "2020.07.14"]
[Round "7"]
[White "NefeLV"]
[Black "KratosKrieg"]
[Result "0-1"]
[WhiteElo "1814"]
[BlackElo "1957"]
[TimeControl "180+1"]
[EndTime "11:16:19 PDT"]
[Termination "KratosKrieg won by resignation"]

1. c4 {[%clk 0:03:00.9]} 1... e5 {[%clk 0:02:59.2]} 2. Nc3 {[%clk 0:03:00.3]}
2... Nf6 {[%clk 0:02:57.7]} 3. Nf3 {[%clk 0:02:58.8]} 3... e4 {[%clk 0:02:52.2]}
4. Nd4 {[%clk 0:02:57.7]} 4... c6 {[%clk 0:02:52.6]} 5. d3 {[%clk 0:02:54]} 5...
d5 {[%clk 0:02:45.1]} 6. cxd5 {[%clk 0:02:53.2]} 6... cxd5 {[%clk 0:02:42.7]} 7.
dxe4 {[%clk 0:02:51.5]} 7... dxe4 {[%clk 0:02:42.9]} 8. Bg5 {[%clk 0:02:46.6]}
8... Be7 {[%clk 0:02:41.8]} 9. e3 {[%clk 0:02:43]} 9... Bg4 {[%clk 0:01:32.9]}
10. Qb3 {[%clk 0:02:36.3]} 10... O-O {[%clk 0:01:25.1]} 11. Qxb7 {[%clk
0:02:31.6]} 11... Nbd7 {[%clk 0:01:20.3]} 12. Bb5 {[%clk 0:02:13.6]} 12... Nc5
{[%clk 0:01:04.7]} 13. O-O {[%clk 0:01:59.5]} 13... Nxb7 {[%clk 0:01:03.5]} 0-1

[Event "*** SCC Grand Prix: Titled Tuesday Blitz"]
[Site "Chess.com"]
[Date "2020.07.14"]
[Round "7"]
[White "Godzillator"]
[Black "K-Nygren"]
[Result "0-1"]
[WhiteElo "2319"]
[BlackElo "2478"]
[TimeControl "180+1"]
[EndTime "11:16:33 PDT"]
[Termination "K-Nygren won by resignation"]

1. d4 {[%clk 0:03:00.9]} 1... Nf6 {[%clk 0:02:58.5]} 2. c4 {[%clk 0:03:01]} 2...
g6 {[%clk 0:02:58.3]} 3. Nc3 {[%clk 0:03:01]} 3... Bg7 {[%clk 0:02:58.5]} 4. e4
{[%clk 0:03:01.3]} 4... d6 {[%clk 0:02:58.7]} 5. Be2 {[%clk 0:03:02]} 5... O-O
{[%clk 0:02:58.4]} 6. Bg5 {[%clk 0:03:02.6]} 6... Nbd7 {[%clk 0:02:57.7]} 7. Qc1
{[%clk 0:03:02.3]} 7... c5 {[%clk 0:02:56.9]} 8. d5 {[%clk 0:03:02.5]} 8... b5
{[%clk 0:02:56.8]} 9. cxb5 {[%clk 0:03:01.9]} 9... a6 {[%clk 0:02:56.8]} 10. a4
{[%clk 0:03:01.8]} 10... axb5 {[%clk 0:02:55.4]} 11. Bxb5 {[%clk 0:03:01.8]}
11... Ba6 {[%clk 0:02:55]} 12. f3 {[%clk 0:02:57.4]} 12... Ne5 {[%clk
0:02:54.2]} 13. Bxa6 {[%clk 0:02:48.1]} 13... Rxa6 {[%clk 0:02:53.2]} 14. Qc2
{[%clk 0:02:49]} 14... c4 {[%clk 0:02:52.1]} 15. Nge2 {[%clk 0:02:44.3]} 15...
Nd3+ {[%clk 0:02:51.2]} 16. Kf1 {[%clk 0:02:44.3]} 16... Qb6 {[%clk 0:02:50]}
17. Bh4 {[%clk 0:02:41.8]} 17... Rb8 {[%clk 0:02:39.2]} 18. Ra2 {[%clk 0:02:38]}
18... Nb4 {[%clk 0:02:37.1]} 19. Qb1 {[%clk 0:02:37.2]} 19... Nxa2 {[%clk
0:02:36.7]} 20. Qxa2 {[%clk 0:02:37.6]} 20... Qxb2 {[%clk 0:02:32.5]} 21. Qxc4
{[%clk 0:02:37.4]} 21... Rab6 {[%clk 0:02:24.1]} 22. Kf2 {[%clk 0:02:28.5]}
22... Nd7 {[%clk 0:02:19.9]} 23. Bxe7 {[%clk 0:01:55.3]} 23... Ne5 {[%clk
0:02:15.3]} 24. Qc7 {[%clk 0:01:48.3]} 24... R6b7 {[%clk 0:02:01.1]} 25. Qxd6
{[%clk 0:01:45.6]} 25... Nd3+ {[%clk 0:02:00.1]} 26. Ke3 {[%clk 0:01:39.7]}
26... Bxc3 {[%clk 0:01:59.2]} 27. Kxd3 {[%clk 0:01:35]} 27... Qd2+ {[%clk
0:01:55.5]} 28. Kc4 {[%clk 0:01:31.4]} 28... Rc8+ {[%clk 0:01:54.5]} 29. Qc6
{[%clk 0:01:31.5]} 0-1

[Event "*** SCC Grand Prix: Titled Tuesday Blitz"]
[Site "Chess.com"]
[Date "2020.07.14"]
[Round "7"]
[White "mirochka"]
[Black "HanSchut"]
[Result "1-0"]
[WhiteElo "2181"]
[BlackElo "2317"]
[TimeControl "180+1"]
[EndTime "11:16:47 PDT"]
[Termination "mirochka won by resignation"]

1. e4 {[%clk 0:03:00.9]} 1... c5 {[%clk 0:02:08.1]} 2. b4 {[%clk 0:02:59.6]}
2... b6 {[%clk 0:02:07.1]} 3. bxc5 {[%clk 0:02:58.7]} 3... bxc5 {[%clk
0:02:07.3]} 4. Nc3 {[%clk 0:02:59.3]} 4... Nc6 {[%clk 0:02:02.3]} 5. Rb1 {[%clk
0:02:59.3]} 5... g6 {[%clk 0:02:01.6]} 6. Nf3 {[%clk 0:02:55.4]} 6... Bg7 {[%clk
0:02:00.5]} 7. Bc4 {[%clk 0:02:52.4]} 7... Nd4 {[%clk 0:01:40.2]} 8. Bd5 {[%clk
0:02:41.2]} 8... Nc6 {[%clk 0:01:30.1]} 9. O-O {[%clk 0:02:35.3]} 9... e6 {[%clk
0:01:25.8]} 10. Bxc6 {[%clk 0:02:34.4]} 10... dxc6 {[%clk 0:01:26.7]} 11. e5
{[%clk 0:02:34.4]} 11... Ne7 {[%clk 0:01:15.6]} 12. d3 {[%clk 0:02:12.6]} 12...
O-O {[%clk 0:01:13.9]} 13. Ba3 {[%clk 0:02:11.2]} 13... c4 {[%clk 0:01:12.4]}
14. dxc4 {[%clk 0:02:08.7]} 14... Qxd1 {[%clk 0:01:05.5]} 15. Rfxd1 {[%clk
0:02:09.6]} 15... Re8 {[%clk 0:01:06.1]} 16. Bxe7 {[%clk 0:01:52.2]} 16... Rxe7
{[%clk 0:01:02.3]} 17. Rd8+ {[%clk 0:01:52.7]} 17... Bf8 {[%clk 0:01:01.9]} 18.
Ne4 {[%clk 0:01:52.4]} 18... Rd7 {[%clk 0:00:58.5]} 19. Nf6+ {[%clk 0:01:48.5]}
1-0

[Event "*** SCC Grand Prix: Titled Tuesday Blitz"]
[Site "Chess.com"]
[Date "2020.07.14"]
[Round "7"]
[White "deep306"]
[Black "Nathan_Filgueiras"]
[Result "1-0"]
[WhiteElo "2595"]
[BlackElo "2412"]
[TimeControl "180+1"]
[EndTime "11:16:54 PDT"]
[Termination "deep306 won by checkmate"]

1. d4 {[%clk 0:03:00]} 1... Nf6 {[%clk 0:02:59.7]} 2. c4 {[%clk 0:02:59.8]} 2...
e6 {[%clk 0:02:59.9]} 3. Nc3 {[%clk 0:02:59.7]} 3... Bb4 {[%clk 0:02:58.8]} 4.
e3 {[%clk 0:03:00.2]} 4... O-O {[%clk 0:02:58.1]} 5. Bd2 {[%clk 0:03:00.5]} 5...
b6 {[%clk 0:02:50.3]} 6. Nf3 {[%clk 0:03:00.8]} 6... Bb7 {[%clk 0:02:50]} 7. Bd3
{[%clk 0:03:01.3]} 7... Bxc3 {[%clk 0:02:50]} 8. Bxc3 {[%clk 0:03:01.7]} 8...
Ne4 {[%clk 0:02:50.6]} 9. Bxe4 {[%clk 0:03:02.3]} 9... Bxe4 {[%clk 0:02:51.5]}
10. d5 {[%clk 0:03:02.8]} 10... d6 {[%clk 0:02:44.5]} 11. Qd4 {[%clk 0:03:01.3]}
11... e5 {[%clk 0:01:51]} 12. Qxe4 {[%clk 0:03:00.7]} 12... f5 {[%clk
0:01:48.6]} 13. Qc2 {[%clk 0:03:00.2]} 13... Nd7 {[%clk 0:01:47.1]} 14. Nd2
{[%clk 0:02:54]} 14... a5 {[%clk 0:01:48]} 15. O-O {[%clk 0:02:51.3]} 15... a4
{[%clk 0:01:45.6]} 16. f4 {[%clk 0:02:51]} 16... Qe7 {[%clk 0:01:42.6]} 17. Rae1
{[%clk 0:02:47.5]} 17... Rae8 {[%clk 0:01:41.7]} 18. Nf3 {[%clk 0:02:47.3]}
18... a3 {[%clk 0:01:38]} 19. b3 {[%clk 0:02:40.5]} 19... g6 {[%clk 0:01:32.8]}
20. e4 {[%clk 0:02:36]} 20... fxe4 {[%clk 0:01:23.4]} 21. Qxe4 {[%clk 0:02:31]}
21... Nc5 {[%clk 0:01:21.7]} 22. Qe3 {[%clk 0:02:22.2]} 22... Qd7 {[%clk
0:00:58]} 23. fxe5 {[%clk 0:02:19.5]} 23... dxe5 {[%clk 0:00:58.9]} 24. Nxe5
{[%clk 0:02:17.8]} 24... Rxf1+ {[%clk 0:00:59.8]} 25. Rxf1 {[%clk 0:02:17.4]}
25... Qd6 {[%clk 0:00:58.6]} 26. Ng4 {[%clk 0:02:07.2]} 26... Ne4 {[%clk
0:00:55.6]} 27. Nh6# {[%clk 0:02:06.6]} 1-0

[Event "*** SCC Grand Prix: Titled Tuesday Blitz"]
[Site "Chess.com"]
[Date "2020.07.14"]
[Round "7"]
[White "Irishchessman16"]
[Black "CrushingKings"]
[Result "1-0"]
[WhiteElo "2400"]
[BlackElo "2533"]
[TimeControl "180+1"]
[EndTime "11:17:13 PDT"]
[Termination "Irishchessman16 won by resignation"]

1. e4 {[%clk 0:03:00.9]} 1... c5 {[%clk 0:02:59.5]} 2. f4 {[%clk 0:02:58.6]}
2... e5 {[%clk 0:02:51.8]} 3. Nf3 {[%clk 0:02:53.6]} 3... d6 {[%clk 0:02:45.1]}
4. Bc4 {[%clk 0:02:52.6]} 4... Nc6 {[%clk 0:02:40.8]} 5. O-O {[%clk 0:02:51.1]}
5... Be7 {[%clk 0:02:32.6]} 6. d3 {[%clk 0:02:40.9]} 6... h6 {[%clk 0:02:28.5]}
7. fxe5 {[%clk 0:02:05]} 7... dxe5 {[%clk 0:02:25.8]} 8. Bxf7+ {[%clk 0:02:04]}
8... Kxf7 {[%clk 0:02:24.2]} 9. Nxe5+ {[%clk 0:02:04.1]} 9... Ke6 {[%clk
0:02:20.5]} 10. Qg4+ {[%clk 0:02:03.2]} 10... Kd6 {[%clk 0:02:20.5]} 11. Nc4+
{[%clk 0:01:32.5]} 11... Kc7 {[%clk 0:02:18.1]} 12. Bf4+ {[%clk 0:01:32.3]}
12... Bd6 {[%clk 0:02:18.3]} 13. Qxg7+ {[%clk 0:01:32.1]} 13... Nge7 {[%clk
0:02:13.3]} 14. Bxd6+ {[%clk 0:01:29.9]} 14... Kd7 {[%clk 0:02:13.6]} 15. Ne5+
{[%clk 0:01:12.4]} 15... Nxe5 {[%clk 0:02:07.2]} 16. Qxe5 {[%clk 0:01:03.1]}
16... Rf8 {[%clk 0:02:03.6]} 17. Rxf8 {[%clk 0:00:56.8]} 17... Qxf8 {[%clk
0:02:03.6]} 18. Nc3 {[%clk 0:00:57.2]} 18... Nc6 {[%clk 0:01:56.6]} 19. Bxc5
{[%clk 0:00:50.9]} 19... Nxe5 {[%clk 0:01:44.5]} 20. Bxf8 {[%clk 0:00:50.4]}
20... b5 {[%clk 0:01:45.1]} 21. Bxh6 {[%clk 0:00:46.2]} 21... b4 {[%clk
0:01:44.3]} 22. Nd5 {[%clk 0:00:45.5]} 22... Rb8 {[%clk 0:01:42.2]} 23. Bf4
{[%clk 0:00:43.7]} 1-0

[Event "*** SCC Grand Prix: Titled Tuesday Blitz"]
[Site "Chess.com"]
[Date "2020.07.14"]
[Round "7"]
[White "snap_man"]
[Black "orrbaverlekszarnyon"]
[Result "0-1"]
[WhiteElo "2304"]
[BlackElo "2172"]
[TimeControl "180+1"]
[EndTime "11:17:13 PDT"]
[Termination "orrbaverlekszarnyon won by resignation"]

1. e4 {[%clk 0:03:00.9]} 1... c5 {[%clk 0:02:58.9]} 2. Nf3 {[%clk 0:03:00.9]}
2... d6 {[%clk 0:02:59.2]} 3. d4 {[%clk 0:02:55]} 3... cxd4 {[%clk 0:03:00.1]}
4. Qxd4 {[%clk 0:02:55.2]} 4... a6 {[%clk 0:02:54.9]} 5. h3 {[%clk 0:02:53.9]}
5... Nc6 {[%clk 0:02:54.3]} 6. Qe3 {[%clk 0:02:54]} 6... Nf6 {[%clk 0:02:54]} 7.
c4 {[%clk 0:02:53.7]} 7... g6 {[%clk 0:02:54.3]} 8. Nc3 {[%clk 0:02:53.3]} 8...
Bg7 {[%clk 0:02:54.7]} 9. Bd3 {[%clk 0:02:52.3]} 9... O-O {[%clk 0:02:54.9]} 10.
O-O {[%clk 0:02:52.3]} 10... Nd7 {[%clk 0:02:53.4]} 11. Rd1 {[%clk 0:02:48.1]}
11... Nde5 {[%clk 0:02:53]} 12. Bf1 {[%clk 0:02:38]} 12... Nxf3+ {[%clk
0:02:45.2]} 13. Qxf3 {[%clk 0:02:37.5]} 13... Be6 {[%clk 0:02:44.7]} 14. c5
{[%clk 0:02:31.4]} 14... Nd4 {[%clk 0:02:34.9]} 15. Qd3 {[%clk 0:02:14.2]} 15...
dxc5 {[%clk 0:02:34.2]} 16. Be3 {[%clk 0:02:05.3]} 16... Qc7 {[%clk 0:02:32.1]}
17. Nd5 {[%clk 0:01:53]} 17... Bxd5 {[%clk 0:02:28.4]} 18. exd5 {[%clk
0:01:53.2]} 18... Rfd8 {[%clk 0:02:21]} 19. Bxd4 {[%clk 0:01:46.5]} 19... Bxd4
{[%clk 0:01:49.2]} 20. Qc4 {[%clk 0:01:38.2]} 20... b5 {[%clk 0:01:47.4]} 21.
Qb3 {[%clk 0:01:34.1]} 21... Qd6 {[%clk 0:01:41.9]} 22. a4 {[%clk 0:01:32]}
22... Rab8 {[%clk 0:01:19.1]} 23. axb5 {[%clk 0:01:31.2]} 23... axb5 {[%clk
0:01:20]} 24. Ra7 {[%clk 0:01:23]} 24... c4 {[%clk 0:01:13.3]} 0-1

[Event "*** SCC Grand Prix: Titled Tuesday Blitz"]
[Site "Chess.com"]
[Date "2020.07.14"]
[Round "7"]
[White "Oneofmyturns"]
[Black "binbin239"]
[Result "1-0"]
[WhiteElo "2707"]
[BlackElo "2533"]
[TimeControl "180+1"]
[EndTime "11:17:32 PDT"]
[Termination "Oneofmyturns won by checkmate"]

1. d4 {[%clk 0:03:00.9]} 1... Nf6 {[%clk 0:02:59.2]} 2. c4 {[%clk 0:03:01.5]}
2... g6 {[%clk 0:02:58.7]} 3. Nc3 {[%clk 0:03:01.6]} 3... d5 {[%clk 0:02:58.6]}
4. cxd5 {[%clk 0:03:02.5]} 4... Nxd5 {[%clk 0:02:57.7]} 5. e4 {[%clk 0:03:03.1]}
5... Nxc3 {[%clk 0:02:46.4]} 6. bxc3 {[%clk 0:03:04]} 6... Bg7 {[%clk
0:02:45.3]} 7. Be3 {[%clk 0:03:04.6]} 7... c5 {[%clk 0:02:44.1]} 8. Rc1 {[%clk
0:03:04.9]} 8... O-O {[%clk 0:02:43.4]} 9. Qd2 {[%clk 0:03:05]} 9... Nc6 {[%clk
0:02:43.4]} 10. Nf3 {[%clk 0:03:02.1]} 10... Qa5 {[%clk 0:02:32.2]} 11. d5
{[%clk 0:03:01.3]} 11... Rd8 {[%clk 0:02:31.6]} 12. h4 {[%clk 0:02:58]} 12... e6
{[%clk 0:02:31]} 13. Bg5 {[%clk 0:02:57.1]} 13... Rd7 {[%clk 0:02:20.1]} 14. Be2
{[%clk 0:02:21.6]} 14... exd5 {[%clk 0:02:19.1]} 15. exd5 {[%clk 0:02:22.5]}
15... c4 {[%clk 0:02:08]} 16. Bxc4 {[%clk 0:02:21]} 16... Ne7 {[%clk 0:02:06.9]}
17. O-O {[%clk 0:01:50.9]} 17... Nxd5 {[%clk 0:02:05.4]} 18. Rfe1 {[%clk
0:01:51.6]} 18... Nf6 {[%clk 0:01:56.8]} 19. Qf4 {[%clk 0:01:46.8]} 19... Qc7
{[%clk 0:01:38.4]} 20. Ne5 {[%clk 0:01:22.5]} 20... Nh5 {[%clk 0:01:20.6]} 21.
Nxd7 {[%clk 0:01:12.9]} 21... Nxf4 {[%clk 0:01:09.2]} 22. Re8+ {[%clk
0:01:09.1]} 22... Bf8 {[%clk 0:01:09]} 23. Rxf8+ {[%clk 0:01:04.1]} 23... Kg7
{[%clk 0:01:09.2]} 24. Rxf7+ {[%clk 0:01:04.7]} 24... Kh8 {[%clk 0:01:08.4]} 25.
Bf6+ {[%clk 0:01:02.7]} 25... Kg8 {[%clk 0:01:08.3]} 26. Rf8# {[%clk 0:01:03.4]}
1-0

[Event "*** SCC Grand Prix: Titled Tuesday Blitz"]
[Site "Chess.com"]
[Date "2020.07.14"]
[Round "7"]
[White "Shuvalov"]
[Black "sea-needle"]
[Result "1-0"]
[WhiteElo "2492"]
[BlackElo "2329"]
[TimeControl "180+1"]
[EndTime "11:17:37 PDT"]
[Termination "Shuvalov won by resignation"]

1. Nf3 {[%clk 0:02:56.1]} 1... d5 {[%clk 0:02:58.1]} 2. c4 {[%clk 0:02:55.6]}
2... c6 {[%clk 0:02:57.8]} 3. g3 {[%clk 0:02:55.5]} 3... Nf6 {[%clk 0:02:57.2]}
4. Bg2 {[%clk 0:02:55.8]} 4... dxc4 {[%clk 0:02:57.1]} 5. O-O {[%clk 0:02:55.4]}
5... e6 {[%clk 0:02:53.1]} 6. Qc2 {[%clk 0:02:54.4]} 6... b5 {[%clk 0:02:47.5]}
7. Ne5 {[%clk 0:02:45.2]} 7... Qd6 {[%clk 0:02:46.1]} 8. d4 {[%clk 0:02:44.2]}
8... cxd3 {[%clk 0:02:41.2]} 9. Nxd3 {[%clk 0:02:44.2]} 9... Bb7 {[%clk
0:02:22.2]} 10. Bf4 {[%clk 0:02:43.3]} 10... Qe7 {[%clk 0:02:21.9]} 11. a4
{[%clk 0:02:33.9]} 11... Nd5 {[%clk 0:02:19]} 12. Bd2 {[%clk 0:02:22.4]} 12...
Nb6 {[%clk 0:01:59.3]} 13. Bb4 {[%clk 0:02:08.4]} 13... Qg5 {[%clk 0:01:44.9]}
14. Bxf8 {[%clk 0:02:05.9]} 14... Kxf8 {[%clk 0:01:37.8]} 15. Nc5 {[%clk
0:02:01.8]} 15... Bc8 {[%clk 0:01:02.7]} 16. axb5 {[%clk 0:02:00.6]} 16... Nd5
{[%clk 0:00:54.2]} 17. e4 {[%clk 0:01:33.5]} 17... Ne7 {[%clk 0:00:35.8]} 18. b6
{[%clk 0:01:28.5]} 1-0